bitfinex-derivatives/quotes_BNBF0:USTF0_20251225
["timestamp","ask_amount","ask_price","bid_price","bid_amount"]
[1766662946566,1.19492008,837.69,836.97,0.89309342]
[1766662946767,1.19492008,837.68,836.97,0.89309342]
[1766662946964,1.19492008,837.67,836.97,0.89309342]
[1766662947165,1.19492008,837.66,836.97,0.89309342]
[1766662947464,1.19492008,837.65,836.97,0.89309342]
[1766662947663,1.19492008,837.64,836.97,0.89309342]
[1766662947869,0.89184606,837.76,836.97,0.89309342]
[1766662948069,1.19492043,837.75,836.97,0.89309342]
[1766662948269,1.19492043,837.74,836.97,0.89309342]
[1766662948470,1.19492043,837.73,836.97,0.89309342]
[1766662948668,0.89184606,837.76,836.97,0.89309342]
[1766662948669,1.19492043,837.72,836.97,0.89309342]
[1766662948965,1.19492043,837.71,836.97,0.89309342]
[1766662949164,1.19492043,837.7,836.97,0.89309342]
[1766662949369,1.19492043,837.69,836.97,0.89309342]
[1766662949570,1.19492043,837.68,836.97,0.89309342]
[1766662949770,1.19492043,837.67,836.97,0.89309342]
[1766662950068,1.19492043,837.66,836.97,0.89309342]
[1766662950366,1.19492043,837.65,836.97,0.89309342]
[1766662950566,1.19492043,837.64,836.97,0.89309342]
[1766662950765,0.89184606,837.76,836.97,0.89309342]
[1766662951069,1.19492043,837.75,836.97,0.89309342]
[1766662951267,1.19492043,837.74,836.97,0.89309342]
[1766662951466,1.19492043,837.73,836.97,0.89309342]
[1766662951766,1.19492043,837.72,836.97,0.89309342]
[1766662951968,1.19492043,837.71,836.97,0.89309342]
[1766662952169,1.19492043,837.7,836.97,0.89309342]
[1766662952368,1.19492043,837.69,836.97,0.89309342]
[1766662952570,1.19492043,837.68,836.97,0.89309342]
[1766662952771,1.19492043,837.67,836.97,0.89309342]
[1766662952971,1.19492043,837.66,836.97,0.89309342]
[1766662953171,1.19492043,837.65,836.97,0.89309342]
[1766662953368,0.89184606,837.76,836.97,0.89309342]
[1766662953568,1.19492031,837.75,836.97,0.89309342]
[1766662953771,1.19492031,837.74,836.82,1.1914949]
[1766662953968,1.19492031,837.73,836.82,1.1914949]
[1766662954168,1.19492031,837.72,836.82,1.1914949]
[1766662954368,1.19492031,837.71,836.82,1.1914949]
[1766662954568,1.19492031,837.7,836.97,0.89308336]
[1766662954768,1.19492031,837.69,836.97,0.89308336]
[1766662955073,1.19492031,837.68,836.97,0.89308336]
[1766662955274,1.19492031,837.67,836.97,0.89308336]
[1766662955475,1.19492031,837.66,836.97,0.89308336]
[1766662955671,1.19492031,837.65,836.97,0.89308336]
[1766662955874,0.20777546,837.74,836.97,0.89308336]
[1766662956075,1.19492021,837.73,836.97,0.89308336]
[1766662956276,1.19492021,837.72,836.97,0.89308336]
[1766662956475,1.19492021,837.71,836.97,0.89308336]
[1766662956674,1.19492021,837.7,836.97,0.89308336]
[1766662956874,1.19492021,837.69,836.97,0.89308336]
[1766662957074,1.19492021,837.68,836.97,0.89308336]
[1766662957275,1.19492021,837.67,836.97,0.89308336]
[1766662957474,1.19492021,837.66,836.97,0.89308336]
[1766662957674,1.19492021,837.65,836.97,0.89308336]
[1766662957875,0.20777546,837.74,836.97,0.89308336]
[1766662958078,1.19492009,837.73,836.97,0.89308336]
[1766662958279,1.19492009,837.72,836.97,0.89308336]
[1766662958481,1.19492009,837.71,836.97,0.89308336]
[1766662958779,1.19492009,837.7,836.97,0.89308336]
[1766662958977,1.19492009,837.69,836.97,0.89308336]
[1766662959181,1.19492009,837.68,836.97,0.89308336]
[1766662959381,1.19492009,837.67,836.98,0.89308336]
[1766662959582,1.19492009,837.66,836.98,0.89308336]
[1766662959778,1.19492009,837.65,836.98,0.89308336]
[1766662959980,0.20777546,837.74,836.98,0.89308336]
[1766662960184,1.19492021,837.73,836.98,0.89308336]
[1766662960384,1.19492021,837.72,836.98,0.89308336]
[1766662960681,1.19492021,837.71,836.98,0.89308336]
[1766662960885,1.19492021,837.7,837.0,0.89308336]
[1766662961082,1.19492021,837.69,837.0,0.89308336]
[1766662961285,1.19492021,837.68,837.0,0.89308336]
[1766662961485,1.19492021,837.67,837.0,0.89308336]
[1766662961681,0.20777546,837.74,837.0,0.89308336]
[1766662961884,1.19488951,837.73,837.0,0.89308336]
[1766662962088,1.19488951,837.72,837.0,0.89308336]
[1766662962286,1.19488951,837.71,837.0,0.89308336]
[1766662962489,1.19488951,837.7,837.0,0.89308336]
[1766662962689,1.19488951,837.69,837.0,0.89308336]
[1766662962890,1.19488951,837.68,837.0,0.89308336]
[1766662963090,1.19488951,837.67,837.0,0.89308336]
[1766662963287,1.19488951,837.66,837.0,0.89308336]
[1766662963487,0.20777546,837.74,837.0,0.89308336]
[1766662963691,1.19488951,837.73,837.0,0.89308336]
[1766662963893,1.19488951,837.72,837.0,0.89308336]
[1766662964093,1.19488951,837.71,837.0,0.89308336]
[1766662964393,1.19488951,837.7,837.01,0.89308336]
[1766662964589,1.19488951,837.69,837.01,0.89308336]
[1766662964793,1.19488951,837.68,837.01,0.89308336]
[1766662964993,1.19488951,837.67,837.01,0.89308336]
[1766662965290,1.19488951,837.66,837.01,0.89308336]
[1766662965593,0.20777546,837.74,837.01,0.89308336]
[1766662965789,1.19488963,837.73,837.01,0.89308336]
[1766662965989,1.19488963,837.72,837.01,0.89308336]
[1766662966187,1.19488963,837.71,837.01,0.89308336]
[1766662966490,1.19488963,837.7,837.01,0.89308336]
[1766662966692,1.19488963,837.69,837.01,0.89308336]
[1766662966990,1.19488963,837.68,837.01,0.89308336]
[1766662967189,1.19488963,837.67,837.01,0.89308336]
[1766662967389,1.19488963,837.66,837.01,0.89308336]
[1766662967589,0.20777546,837.74,837.01,0.89308336]
[1766662967893,1.19488998,837.73,837.01,0.89308336]
[1766662968190,1.19488998,837.72,837.01,0.89308336]
[1766662968390,1.19488998,837.71,837.01,0.89308336]
[1766662968691,1.19488998,837.7,837.01,0.89308336]
[1766662968889,1.19488998,837.69,837.01,0.89308336]
[1766662969092,1.19488998,837.68,837.01,0.89308336]
[1766662969290,1.19488998,837.67,837.01,0.89308336]
[1766662969489,1.19488998,837.66,837.01,0.89308336]
[1766662969693,1.19488998,837.65,837.01,0.89308336]
[1766662969894,0.20777546,837.74,837.01,0.89308336]
[1766662970189,1.19488998,837.73,837.01,0.89308336]
[1766662970393,1.19488998,837.72,837.01,0.89308336]
[1766662970593,1.19488998,837.71,837.01,0.89308336]
[1766662970892,1.19488998,837.7,837.01,0.89308336]
[1766662971089,1.19488998,837.69,837.01,0.89308336]
[1766662971289,1.19488998,837.68,837.01,0.89308336]
[1766662971493,1.19488998,837.67,837.01,0.89308336]
[1766662971693,1.19488998,837.66,837.01,0.89308336]
[1766662971988,1.19488998,837.65,837.01,0.89308336]
[1766662972193,0.20777546,837.74,837.01,0.89308336]
[1766662972390,1.19488998,837.73,837.02,0.89308336]
[1766662972591,1.19488998,837.72,837.02,0.89308336]
[1766662972795,1.19488998,837.71,837.02,0.89308336]
[1766662973095,1.19488998,837.7,837.02,0.89308336]
[1766662973295,1.19488998,837.69,837.02,0.89308336]
[1766662973596,1.19488998,837.68,837.02,0.89308336]
[1766662973795,1.19488998,837.67,837.02,0.89308336]
[1766662974093,1.19488998,837.66,837.02,0.89308336]
[1766662974292,1.19488998,837.65,837.02,0.89308336]
[1766662974495,1.19488998,837.64,837.02,0.89308336]
[1766662974695,1.10273369,837.74,837.02,0.89308336]
[1766662974895,1.19488974,837.73,837.02,0.89308336]
[1766662975093,1.19488974,837.72,837.02,0.89308336]
[1766662975292,1.19488974,837.71,837.02,0.89308336]
[1766662975496,1.19488974,837.7,837.02,0.89308336]
[1766662975693,1.19488974,837.69,837.02,0.89308336]
[1766662975892,1.19488974,837.68,837.02,0.89308336]
[1766662976094,1.19488974,837.67,837.02,0.89308336]
[1766662976294,1.19488974,837.66,837.02,0.89308336]
[1766662976497,1.19488974,837.65,837.02,0.89308336]
[1766662976792,1.19488974,837.64,837.02,0.89308336]
[1766662976993,1.10273369,837.74,837.02,0.89308336]
[1766662977194,1.19488974,837.73,837.02,0.89308336]
[1766662977397,1.19488974,837.72,837.02,0.89308336]
[1766662977597,1.19488974,837.71,837.02,0.89308336]
[1766662977794,1.19488974,837.7,837.02,0.89308336]
[1766662978097,1.19488974,837.69,837.02,0.89308336]
[1766662978297,1.19488974,837.68,837.02,0.89308336]
[1766662978494,1.19488974,837.67,837.02,0.89308336]
[1766662978699,1.10273369,837.74,837.02,0.89308336]
[1766662978700,1.19488974,837.66,837.02,0.89308336]
[1766662978998,1.19488974,837.65,837.02,0.89308336]
[1766662979300,1.19488974,837.64,837.02,0.89308336]
[1766662979495,1.10273369,837.74,837.02,0.89308336]
[1766662979699,1.19488974,837.73,837.02,0.89308336]
[1766662979898,1.19488974,837.72,837.02,0.89308336]
[1766662980099,1.19488974,837.71,837.02,0.89308336]
[1766662980299,1.19488974,837.7,837.02,0.89308336]
[1766662980495,1.19488974,837.69,837.02,0.89308336]
[1766662980696,1.19488974,837.68,837.02,0.89308336]
[1766662980898,1.19488974,837.67,837.02,0.89308336]
[1766662981096,1.19488974,837.66,837.02,0.89308336]
[1766662981398,1.19488974,837.65,837.02,0.89308336]
[1766662981701,1.19488974,837.64,837.02,0.89308336]
[1766662981999,1.10273369,837.74,837.02,0.89308336]
[1766662982202,1.19488974,837.73,837.02,0.89308336]
[1766662982399,1.19488974,837.72,837.02,0.89308336]
[1766662982602,1.19488974,837.71,837.02,0.89308336]
[1766662982899,1.19488974,837.7,837.02,0.89308336]
[1766662983099,1.19488974,837.69,837.02,0.89308336]
[1766662983299,1.19488974,837.68,837.02,0.89308336]
[1766662983502,1.19488974,837.67,837.03,0.89308336]
[1766662983700,1.19488974,837.66,837.03,0.89308336]
[1766662984004,1.19488974,837.65,837.03,0.89308336]
[1766662984201,1.10273369,837.74,837.03,0.89308336]
[1766662984505,1.19487971,837.73,837.03,0.89308336]
[1766662984702,1.19487971,837.72,837.03,0.89308336]
[1766662984902,1.19487971,837.71,837.03,0.89308336]
[1766662985107,1.19487971,837.7,837.03,0.89308336]
[1766662985301,1.10273369,837.74,837.03,0.89308336]
[1766662985302,1.19487971,837.69,837.03,0.89308336]
[1766662985506,1.19487971,837.68,837.03,0.89308336]
[1766662985706,1.19487971,837.67,837.03,0.89308336]
[1766662986006,1.19487971,837.66,837.03,0.89308336]
[1766662986306,1.19487971,837.65,837.03,0.89308336]
[1766662986506,1.10273369,837.74,837.03,0.89308336]
[1766662986706,1.19488002,837.73,837.03,0.89308336]
[1766662986901,1.19488002,837.72,837.03,0.89308336]
[1766662987206,1.19488002,837.71,837.03,0.89308336]
[1766662987403,1.19488002,837.7,837.03,0.89308336]
[1766662987602,1.19488002,837.69,837.03,0.89308336]
[1766662987904,1.19488002,837.68,837.03,0.89308336]
[1766662988101,1.19488002,837.67,837.03,0.89308336]
[1766662988302,1.19488002,837.66,837.03,0.89308336]
[1766662988505,1.19488002,837.65,837.03,0.89308336]
[1766662988704,1.10273369,837.74,837.03,0.89308336]
[1766662988901,1.19488002,837.73,837.03,0.89308336]
[1766662989205,1.19488002,837.72,837.03,0.89308336]
[1766662989404,1.19488002,837.71,837.03,0.89308336]
[1766662989608,1.19488002,837.7,837.03,0.89308336]
[1766662989803,1.19488002,837.69,837.03,0.89308336]
[1766662990006,1.19488002,837.68,837.03,0.89308336]
[1766662990204,1.19488002,837.67,837.03,0.89308336]
[1766662990404,1.19488002,837.66,837.03,0.89308336]
[1766662990605,1.19488002,837.65,837.03,0.89308336]
[1766662990809,1.10273369,837.74,837.03,0.89308336]
[1766662991009,1.19488002,837.73,837.03,0.89308336]
[1766662991210,1.19488002,837.72,837.03,0.89308336]
[1766662991510,1.19488002,837.71,837.03,0.89308336]
[1766662991810,1.19488002,837.7,837.03,0.89308336]
[1766662992006,1.19488002,837.69,837.03,0.89308336]
[1766662992207,1.19488002,837.68,837.03,0.89308336]
[1766662992412,1.19488002,837.67,837.03,0.89308336]
[1766662992612,1.19488002,837.66,837.03,0.89308336]
[1766662992908,1.19488002,837.65,837.03,0.89308336]
[1766662993112,1.10273369,837.74,837.03,0.89308336]
[1766662993310,1.19488002,837.73,837.03,0.89308336]
[1766662993512,1.19488002,837.72,837.03,0.89308336]
[1766662993710,1.19488002,837.71,837.03,0.89308336]
[1766662993908,1.19488002,837.7,837.03,0.89308336]
[1766662994113,1.19488002,837.69,837.03,0.89308336]
[1766662994311,1.19488002,837.68,837.03,0.89308336]
[1766662994511,1.19488002,837.67,837.03,0.89308336]
[1766662994713,1.19488002,837.66,837.03,0.89308336]
[1766662994912,1.19488002,837.65,837.03,0.89308336]
[1766662995213,1.10273369,837.74,837.03,0.89308336]
[1766662995517,1.19487978,837.73,837.03,0.89308336]
[1766662995714,1.19487978,837.72,837.03,0.89308336]
[1766662995917,1.19487978,837.71,837.03,0.89308336]
[1766662996113,1.19487978,837.7,837.03,0.89308336]
[1766662996313,1.19487978,837.69,837.03,0.89308336]
[1766662996512,1.19487978,837.68,837.03,0.89308336]
[1766662996717,1.19487978,837.67,837.03,0.89308336]
[1766662996918,1.19487978,837.66,837.03,0.89308336]
[1766662997214,1.19487978,837.65,837.03,0.89308336]
[1766662997414,1.10273369,837.74,837.03,0.89308336]
[1766662997616,1.19487978,837.73,837.03,0.89308336]
[1766662997814,1.19487978,837.72,837.03,0.89308336]
[1766662998014,1.19487978,837.71,837.03,0.89308336]
[1766662998214,1.19487978,837.7,837.03,0.89308336]
[1766662998414,1.19487978,837.69,837.03,0.89308336]
[1766662998613,1.19487978,837.68,837.03,0.89308336]
[1766662998816,1.19487978,837.67,837.03,0.89308336]
[1766662999014,1.19487978,837.66,837.03,0.89308336]
[1766662999313,1.19487978,837.65,837.03,0.89308336]
[1766662999514,1.10273369,837.74,837.03,0.89308336]
[1766662999716,1.1948799,837.73,837.03,0.89308336]
[1766663000013,1.1948799,837.72,837.03,0.89308336]
[1766663000217,1.1948799,837.71,837.03,0.89308336]
[1766663000419,1.1948799,837.7,837.03,0.89308336]
[1766663000613,1.1948799,837.69,837.03,0.89308336]
[1766663000817,1.1948799,837.68,837.03,0.89308336]
[1766663001018,1.1948799,837.67,837.03,0.89308336]
[1766663001218,1.1948799,837.66,837.03,0.89308336]
[1766663001419,1.1948799,837.65,837.03,0.89308336]
[1766663001621,1.1948799,837.64,837.03,0.89308336]
[1766663001821,1.10273369,837.74,837.03,0.89308336]
[1766663002117,1.1948799,837.73,837.03,0.89308336]
[1766663002316,1.1948799,837.72,837.03,0.89308336]
[1766663002520,1.1948799,837.71,837.04,0.89308336]
[1766663002717,1.1948799,837.7,837.04,0.89308336]
[1766663002920,1.1948799,837.69,837.04,0.89308336]
[1766663003121,1.1948799,837.68,837.04,0.89308336]
[1766663003421,1.1948799,837.67,837.04,0.89308336]
[1766663003618,1.1948799,837.66,837.04,0.89308336]
[1766663003816,1.1948799,837.65,837.04,0.89308336]
[1766663004022,1.1948799,837.64,837.04,0.89308336]
[1766663004220,1.10273369,837.74,837.04,0.89308336]
[1766663004421,1.1948799,837.73,837.04,0.89308336]
[1766663004716,1.1948799,837.72,837.04,0.89308336]
[1766663005020,1.1948799,837.71,837.04,0.89308336]
[1766663005214,1.1948799,837.7,837.04,0.89308336]
[1766663005420,1.1948799,837.69,837.04,0.89308336]
[1766663005614,1.1948799,837.68,837.05,0.89308336]
[1766663005817,1.1948799,837.67,837.05,0.89308336]
[1766663006019,1.1948799,837.66,837.05,0.89308336]
[1766663006220,1.1948799,837.65,837.05,0.89308336]
[1766663006421,1.10273369,837.74,837.05,0.89308336]
[1766663006622,1.19486987,837.73,837.05,0.89308336]
[1766663006917,1.19486987,837.72,837.05,0.89308336]
[1766663007121,1.19486987,837.71,837.05,0.89308336]
[1766663007321,1.19486987,837.7,837.05,0.89308336]
[1766663007521,1.19486987,837.69,837.05,0.89308336]
[1766663007722,1.19486987,837.68,837.05,0.89308336]
[1766663007923,1.19486987,837.67,837.05,0.89308336]
[1766663008218,1.19486987,837.66,837.05,0.89308336]
[1766663008423,1.19486987,837.65,837.05,0.89308336]
[1766663008623,1.10273369,837.74,837.05,0.89308336]
[1766663008825,1.19486987,837.73,837.05,0.89308336]
[1766663009125,1.19486987,837.72,837.05,0.89308336]
[1766663009320,1.19486987,837.71,837.05,0.89308336]
[1766663009521,1.19486987,837.7,837.05,0.89308336]
[1766663009821,1.19486987,837.69,837.05,0.89308336]
[1766663010020,1.19486987,837.68,837.05,0.89308336]
[1766663010226,1.19486987,837.67,837.05,0.89308336]
[1766663010430,1.19486987,837.66,837.05,0.89308336]
[1766663010633,0.20777546,837.74,837.05,0.89308336]
[1766663010833,1.19485757,837.73,837.05,0.89308336]
[1766663011134,1.19485757,837.72,837.05,0.89308336]
[1766663011435,1.19485757,837.71,837.05,0.89308336]
[1766663011729,1.19485757,837.7,837.05,0.89308336]
[1766663011933,1.19485757,837.69,837.05,0.89308336]
[1766663012132,1.19485757,837.68,837.05,0.89308336]
[1766663012332,1.19485757,837.67,837.05,0.89308336]
[1766663012528,1.19485757,837.66,837.05,0.89308336]
[1766663012732,1.19485757,837.65,837.05,0.89308336]
[1766663012932,0.20777546,837.74,837.05,0.89308336]
[1766663013129,1.19485745,837.73,837.05,0.89308336]
[1766663013334,1.19485745,837.72,837.05,0.89308336]
[1766663013530,1.19485745,837.71,837.05,0.89308336]
[1766663013730,1.19485745,837.7,837.05,0.89308336]
[1766663013929,1.19485745,837.69,837.05,0.89308336]
[1766663014130,1.19485745,837.68,837.05,0.89308336]
[1766663014330,1.19485745,837.67,837.05,0.89308336]
[1766663014530,1.19485745,837.66,837.05,0.89308336]
[1766663014734,0.20777546,837.74,837.05,0.89308336]
[1766663015031,1.19485705,837.73,837.05,0.89308336]
[1766663015230,1.19485705,837.72,837.05,0.89308336]
[1766663015434,1.19485705,837.71,837.05,0.89308336]
[1766663015634,1.19485705,837.7,837.05,0.89308336]
[1766663015835,1.19485705,837.69,837.05,0.89308336]
[1766663016034,1.19485705,837.68,837.05,0.89308336]
[1766663016236,1.19485705,837.67,837.05,0.89308336]
[1766663016436,1.19485705,837.66,837.05,0.89308336]
[1766663016633,0.20777546,837.74,837.05,0.89308336]
[1766663016837,1.19485707,837.73,837.05,0.89308336]
[1766663017137,1.19485707,837.72,837.05,0.89308336]
[1766663017336,1.19485707,837.71,837.05,0.89308336]
[1766663017637,1.19485707,837.7,837.05,0.89308336]
[1766663017937,1.19485707,837.69,837.05,0.89308336]
[1766663018132,1.19485707,837.68,837.05,0.89308336]
[1766663018337,1.19485707,837.67,837.05,0.89308336]
[1766663018538,1.19485707,837.66,837.05,0.89308336]
[1766663018737,0.20777546,837.74,837.05,0.89308336]
[1766663018940,1.19484703,837.73,837.06,0.89308336]
[1766663019133,1.19484703,837.72,837.06,0.89308336]
[1766663019336,1.19484703,837.71,837.06,0.89308336]
[1766663019535,1.19484703,837.7,837.06,0.89308336]
[1766663019735,1.19484703,837.69,837.06,0.89308336]
[1766663020036,1.19484703,837.68,837.06,0.89308336]
[1766663020234,1.19484703,837.67,837.06,0.89308336]
[1766663020434,0.20777546,837.74,837.06,0.89308336]
[1766663020638,1.19484703,837.73,837.06,0.89308336]
[1766663020838,1.19484703,837.72,837.06,0.89308336]
[1766663021138,1.19484703,837.71,837.06,0.89308336]
[1766663021336,1.19484703,837.7,837.06,0.89308336]
[1766663021638,1.19484703,837.69,837.06,0.89308336]
[1766663021838,1.19484703,837.68,837.06,0.89308336]
[1766663022039,1.19484703,837.67,837.06,0.89308336]
[1766663022240,0.20777546,837.74,837.06,0.89308336]
[1766663022437,1.19484703,837.73,837.06,0.89308336]
[1766663022737,1.19484703,837.72,837.06,0.89308336]
[1766663022939,1.19484703,837.71,837.06,0.89308336]
[1766663023140,1.19484703,837.7,837.05,0.89308336]
[1766663023339,1.19484703,837.69,837.05,0.89308336]
[1766663023540,1.19484703,837.68,837.05,0.89308336]
[1766663023741,1.19484703,837.67,837.05,0.89308336]
[1766663023938,0.20777546,837.74,837.05,0.89308336]
[1766663024141,1.19484691,837.73,837.05,0.89308336]
[1766663024338,1.19484691,837.72,837.05,0.89308336]
[1766663024639,1.19484691,837.71,837.05,0.89308336]
[1766663024842,1.19484691,837.7,837.05,0.89308336]
[1766663025045,1.19484691,837.69,837.05,0.89308336]
[1766663025243,1.19484691,837.68,837.05,0.89308336]
[1766663025439,1.19484691,837.67,837.05,0.89308336]
[1766663025741,0.20777546,837.74,837.06,0.89308336]
[1766663025943,1.19483605,837.73,837.06,0.89308336]
[1766663026143,1.19483605,837.72,837.06,0.89308336]
[1766663026444,1.19483605,837.71,837.06,0.89308336]
[1766663026640,1.19483605,837.7,837.06,0.89308336]
[1766663026845,1.19483605,837.69,837.08,0.89308336]
[1766663027046,0.20777546,837.74,837.08,0.89308336]
[1766663027342,1.19480581,837.73,837.08,0.89308336]
[1766663027645,1.19480581,837.72,837.08,0.89308336]
[1766663027848,0.20777546,837.74,837.17,0.89308336]
[1766663028246,0.20777546,837.74,837.15,0.89308336]
[1766663029548,0.89495823,837.92,837.15,0.89308336]
[1766663029746,0.20773329,837.83,837.16,0.89308336]
[1766663029949,1.19466681,837.82,837.16,0.89308336]
[1766663030148,0.20773329,837.83,837.15,0.89308336]
[1766663031149,0.20773329,837.83,837.14,0.89308336]
[1766663033148,0.20773329,837.83,837.13,0.89308336]
[1766663034148,0.89495823,837.95,837.13,0.89308336]
[1766663034355,1.1946661,837.94,837.14,0.89308336]
[1766663034555,0.20772151,837.92,837.14,0.89308336]
[1766663034755,1.1946661,837.91,837.14,0.89308336]
[1766663035055,1.1946661,837.9,837.14,0.89308336]
[1766663035356,0.20772151,837.92,837.23,0.89308336]
[1766663036055,0.20772151,837.92,837.22,0.89308336]
[1766663037155,0.20772151,837.92,837.21,0.89308336]
[1766663038153,0.20772151,837.92,837.2,0.89308336]
[1766663039352,0.20772151,837.92,837.19,0.89308336]
[1766663042361,0.20772151,837.92,837.18,0.89308336]
[1766663044360,0.20772151,837.92,837.17,0.89308336]
[1766663048268,0.20772151,837.92,837.16,0.89308336]
[1766663057669,0.20772151,837.92,837.17,0.89308336]
[1766663060068,0.20772151,837.92,837.18,0.89308336]
[1766663063178,0.20772151,837.92,837.19,0.89308336]
[1766663065179,0.20772151,837.92,837.2,0.89308336]
[1766663067079,0.20772151,837.92,837.21,0.89308336]
[1766663068577,0.20772151,837.92,837.22,0.89308336]
[1766663069884,0.20772151,837.92,837.23,0.89308336]
[1766663070184,0.20772151,837.92,837.25,0.89308336]
[1766663071189,0.20772151,837.92,837.26,0.89308336]
[1766663072086,0.20772151,837.92,837.27,0.89308336]
[1766663073289,0.20772151,837.92,837.28,0.89308336]
[1766663074787,0.20772151,837.92,837.13,1.19077782]
[1766663075195,0.20772151,837.92,836.98,1.78704211]
[1766663075488,0.20772151,837.92,836.44,0.01243064]
[1766663075692,0.20772151,837.92,836.38,2.98109633]
[1766663076188,0.20772151,837.92,837.29,0.89284706]
[1766663076389,0.20772151,837.92,837.14,1.19046275]
[1766663076594,0.20772151,837.92,836.99,1.78569412]
[1766663076795,0.20772151,837.92,837.29,0.89284701]
[1766663078191,0.20772151,837.92,837.3,0.89284701]
[1766663079092,0.20772151,837.92,837.31,0.89284701]
[1766663080294,0.20772151,837.92,837.32,0.89284701]
[1766663081297,0.89479759,838.03,837.32,0.89284701]
[1766663081496,1.19447329,838.02,837.31,0.89284701]
[1766663081693,1.19447329,838.01,837.31,0.89284701]
[1766663081894,1.19447329,838.0,837.31,0.89284701]
[1766663082094,1.19447329,837.99,837.31,0.89284701]
[1766663082291,1.19447329,837.98,837.31,0.89284701]
[1766663082495,1.19447329,837.97,837.31,0.89284701]
[1766663082693,0.89479759,838.13,837.41,0.89284701]
[1766663082998,1.19433084,838.12,837.41,0.89284701]
[1766663083296,1.19433084,838.11,837.4,0.89284701]
[1766663083498,1.19433084,838.1,837.4,0.89284701]
[1766663083693,1.19433084,838.09,837.4,0.89284701]
[1766663083894,1.19433084,838.08,837.4,0.89284701]
[1766663084095,1.19433084,838.07,837.4,0.89284701]
[1766663084292,0.20768246,838.14,837.4,0.89284701]
[1766663084497,1.19433131,838.13,837.39,0.89284701]
[1766663084699,1.19433131,838.12,837.39,0.89284701]
[1766663084894,1.19433131,838.11,837.39,0.89284701]
[1766663085097,1.19433131,838.1,837.39,0.89284701]
[1766663085298,1.19433131,838.09,837.39,0.89284701]
[1766663085499,1.19433131,838.08,837.39,0.89284701]
[1766663085695,1.19433131,838.07,837.39,0.89284701]
[1766663085996,1.19433131,838.06,837.39,0.89284701]
[1766663086195,0.20768246,838.14,837.39,0.89284701]
[1766663086398,1.19433119,838.13,837.38,0.89284701]
[1766663086599,1.19433119,838.12,837.38,0.89284701]
[1766663086801,1.19433119,838.11,837.38,0.89284701]
[1766663087101,1.19433119,838.1,837.38,0.89284701]
[1766663087400,1.19433119,838.09,837.38,0.89284701]
[1766663087600,1.19433119,838.08,837.38,0.89284701]
[1766663087800,1.19433119,838.07,837.38,0.89284701]
[1766663088002,0.20768246,838.14,837.38,0.89284701]
[1766663088296,1.19433107,838.13,837.37,0.89284701]
[1766663088502,1.19433107,838.12,837.37,0.89284701]
[1766663088701,1.19433107,838.11,837.37,0.89284701]
[1766663088902,1.19433107,838.1,837.37,0.89284701]
[1766663089101,1.19433107,838.09,837.37,0.89284701]
[1766663089297,1.19433107,838.08,837.37,0.89284701]
[1766663089502,1.19433107,838.07,837.37,0.89284701]
[1766663089802,0.20768246,838.14,837.37,0.89284701]
[1766663090002,1.19433119,838.13,837.37,0.89284701]
[1766663090201,1.19433119,838.12,837.37,0.89284701]
[1766663090399,0.20768246,838.14,837.37,0.89284701]
[1766663091702,1.19433119,838.13,837.37,0.89284701]
[1766663091899,1.19433119,838.12,837.37,0.89284701]
[1766663092400,0.20768246,838.14,837.36,0.89284701]
[1766663092700,1.19433119,838.13,837.36,0.89284701]
[1766663093003,1.19433119,838.12,837.36,0.89284701]
[1766663093297,1.19433119,838.11,837.36,0.89284701]
[1766663093499,1.19433119,838.1,837.36,0.89284701]
[1766663093702,1.19433119,838.09,837.36,0.89284701]
[1766663093903,1.19433119,838.08,837.36,0.89284701]
[1766663094107,0.20768246,838.14,837.36,0.89284701]
[1766663094307,1.19433119,838.13,837.36,0.89284701]
[1766663094501,1.19433119,838.12,837.36,0.89284701]
[1766663094706,1.19433119,838.11,837.36,0.89284701]
[1766663095000,1.19433119,838.1,837.36,0.89284701]
[1766663095205,1.19433119,838.09,837.36,0.89284701]
[1766663095501,1.19433119,838.08,837.36,0.89170303]
[1766663095704,0.20768246,838.14,837.36,0.89170303]
[1766663095906,1.19433119,838.13,837.36,0.89170303]
[1766663096105,1.19433119,838.12,837.36,0.89170303]
[1766663096305,1.19433119,838.11,837.36,0.89170303]
[1766663096503,1.19433119,838.1,837.36,0.89170303]
[1766663096705,1.19433119,838.09,837.36,0.89170303]
[1766663096907,0.20768246,838.14,837.36,0.89170303]
[1766663097207,1.19433119,838.13,837.36,0.89170303]
[1766663097402,1.19433119,838.12,837.36,0.89170303]
[1766663097606,1.19433119,838.11,837.36,0.89170303]
[1766663097907,1.19433119,838.1,837.36,0.89170303]
[1766663098204,1.19433119,838.09,837.36,0.89170303]
[1766663098403,0.20768246,838.14,837.36,0.89170303]
[1766663098704,1.19433119,838.13,837.36,0.89170303]
[1766663098903,1.19433119,838.12,837.36,0.89170303]
[1766663099102,0.20768246,838.14,837.36,0.89170303]
[1766663099103,1.19433119,838.11,837.36,0.89170303]
[1766663099308,1.19433119,838.1,837.36,0.89170303]
[1766663099509,1.19433119,838.09,837.36,0.89170303]
[1766663099704,0.20768246,838.14,837.36,0.89170303]
[1766663100007,1.19433095,838.13,837.36,0.89170303]
[1766663100205,1.19433095,838.12,837.36,0.89170303]
[1766663100405,1.19433095,838.11,837.36,0.89170303]
[1766663100709,0.20768246,838.14,837.38,0.89170303]